[Event "1st FIDE Olympiad DIS 2023"]
[Site "Belgrade"]
[Date "2023.02.04"]
[Round "6.3"]
[White "Gurbanov, Andrei"]
[Black "Piekielny, Pawel"]
[Result "0-1"]
[ECO "E05"]
[WhiteElo "2275"]
[BlackElo "2230"]
[Annotator "TA"]
[PlyCount "56"]
[EventDate "2023.01.30"]
[EventType "team-tourn"]
[EventCountry "SRB"]
[SourceTitle "playchess.com"]
[Source "ChessBase"]
[SourceQuality "1"]
[WhiteTeam "Israel"]
[BlackTeam "Poland"]
[WhiteTeamCountry "ISR"]
[BlackTeamCountry "POL"]
[TimeControl "40/5400+30:1800+30"]

{[%evp 15,56,-26,0,0,0,0,0,0,0,-33,-8,-8,0,-27,-26,-18,-13,-27,-16,-20,-6,-39,-40,-45,-55,-60,-57,-49,-25,-95,-79,-163,-110,-179,-76,-83,-89,-98,-56,-61,-61,-389,-389]} 1. d4 {[%emt 0:00:12]} Nf6 {[%emt 0:00:06]} 2. Nf3 {[%emt 0:00:14]} e6 {[%emt 0:00:06]} 3. g3 {[%emt 0:00:06]} d5 {[%emt 0:00:08]} 4. c4 {[%emt 0:00:30]} Be7 {[%emt 0:00:12]} 5. Bg2 {[%emt 0:00:15]} O-O {[%emt 0:00:05]} 6. O-O {[%emt 0:00:33]} dxc4 {[%emt 0:00:02]} 7. Na3 {[%emt 0:01:27]} Bxa3 {[%emt 0:00:35]} 8. bxa3 {[%emt 0:00:05]} Bd7 {[%emt 0:00:04][%cal Bc8d7,Bd7c6,Bc6d5][%mdl 32]} 9. Qc2 {[%emt 0:01:41][%cal Of3e5] 9.a4 is the modern continuation. E05: Open Catalan: 5 Nf3 Be7.} Bc6 {[%emt 0:02:59]} 10. Qxc4 {[%emt 0:01:01]} Nbd7 {[%emt 0:02:45]} 11. Bf4 {[%emt 0:03:09] The position is equal.} Rc8 {[%emt 0:05:15]} 12. Rfc1 {[%emt 0:02:34] [#]} h6 $146 {[%emt 0:11:04]} ({Predecessor:} 12... Bd5 13. Qa4 a6 14. Be3 h6 15. h3 Re8 16. Qa5 Be4 17. a4 Nd5 18. Qd2 b6 {½-½ Romanishin,O (2537)-Nasri,A (2283) Istanbul op-A 10th 2011 (6)}) 13. Qb3 {[%emt 0:06:57]} Bd5 {[%emt 0:05:42]} 14. Qb4 {[%emt 0:04:13]} b6 {[%emt 0:04:37]} 15. Qa4 {[%emt 0:04:34]} a5 {[%emt 0:10:17]} 16. Qb5 {[%emt 0:08:56]} c6 {[%emt 0:01:58]} 17. Qb2 {[%emt 0:00:18]} Re8 {[%emt 0:06:37]} 18. a4 {[%emt 0:05:11]} c5 {[%emt 0:01:07]} 19. dxc5 {[%emt 0:15:19]} Nxc5 {[%emt 0:00:50]} 20. Qa3 {[%emt 0:01:48]} Qd7 {[%emt 0:02:26]} 21. Be3 {[%emt 0:09:56]} Nfe4 {[%emt 0:08:03]} 22. Bd4 {[%emt 0:10:42]} (22. Ne5 $11 {remains equal.} Qxa4 23. Qxa4 Nxa4 24. Bxe4 Bxe4 25. Nc4) 22... f6 $17 {[%emt 0:07:13] Black has more active pieces.} 23. Rab1 {[%emt 0:07:35]} (23. Qe3 $17) 23... Qxa4 {[%emt 0:02:18]} (23... Nxa4 $19 {White must now prevent ...b5.} 24. Ne1 Nd2 25. Rxc8 Rxc8) 24. Qe3 {[%emt 0:00:07]} (24. Qb2 $17 {keeps fighting.}) 24... Qc6 {[%emt 0:02:39]} ({Inferior is} 24... Bxa2 25. Rxb6 Nd7 26. Rb2 $17) (24... Qxa2 $19 {Strongly threatening ...Nb3.} 25. Rb2 Qa4) 25. Ne1 {[%emt 0:00:37]} Nd6 {[%emt 0:02:33][%cal Be4d6,Bd6c4,Bc4d2][%mdl 32]} ({Much worse is} 25... Bxa2 $6 26. Bxc5 Bxb1 27. Rxb1 $11) 26. Bxd5 {[%emt 0:05:48]} exd5 {[%emt 0:01:48]} 27. Qf3 {[%emt 0:00:09]} Nc4 {[%emt 0:01:00] [#] ...Nd2 would be deadly. A dynamic duo of knights.} 28. Nd3 $2 {[%emt 0:01:52][%mdl 8192]} (28. Qh5 $1 $15) 28... Nd2 $1 {[%emt 0:02:01][%csl LRb1,LRf3] Weighted Error Value: White=0.39/Black=0.16 (very precise)} 0-1

[Event "1st FIDE Olympiad DIS 2023"]
[Site "Belgrade"]
[Date "2023.02.04"]
[Round "6.3"]
[White "Johansen, Torbjorn Reidar"]
[Black "Sarkar, Bappi"]
[Result "1-0"]
[ECO "B12"]
[WhiteElo "1764"]
[BlackElo "1778"]
[Annotator "NA RC COMBH"]
[PlyCount "126"]
[EventDate "2023.01.30"]
[EventType "team-tourn"]
[EventCountry "SRB"]
[SourceTitle "playchess.com"]
[Source "ChessBase"]
[SourceQuality "1"]
[WhiteTeam "Norway"]
[BlackTeam "Bangladesh"]
[WhiteTeamCountry "NOR"]
[BlackTeamCountry "BAN"]
[TimeControl "40/5400+30:1800+30"]

1. e4 {[%emt 0:00:36]} c6 {[%emt 0:01:41]} 2. d4 {[%emt 0:00:27]} d5 {[%emt 0:00:18]} 3. e5 {[%emt 0:01:11]} Bf5 {[%emt 0:01:22]} 4. Nf3 {[%emt 0:00:44]} e6 {[%emt 0:00:20]} 5. Bd3 {[%emt 0:02:22]} Ne7 {[%emt 0:03:02]} 6. c3 {[%emt 0:09:00]} Nd7 {[%emt 0:03:12]} 7. Bxf5 {[%emt 0:05:04]} Nxf5 {[%emt 0:00:04]} 8. b3 {[%emt 0:03:20]} Qb6 {[%emt 0:08:10]} 9. Na3 {[%emt 0:02:00]} c5 {[%emt 0:03:18]} 10. O-O {[%emt 0:00:39]} Be7 {[%emt 0:02:28]} 11. Nc2 {[%emt 0:03:38]} O-O {[%emt 0:03:35]} 12. g4 {[%emt 0:06:22]} Nh6 {[%emt 0:17:42]} 13. Bxh6 {[%emt 0:05:22]} gxh6 {[%emt 0:00:02]} 14. Qd2 {[%emt 0:01:13]} Kg7 {[%emt 0:00:23]} 15. Kh1 {[%emt 0:01:27]} Qd8 {[%emt 0:00:54]} 16. Rg1 {[%emt 0:09:31]} Bg5 {[%emt 0:02:26]} 17. Nxg5 {[%emt 0:00:38]} hxg5 {[%emt 0:00:17]} 18. f4 {[%emt 0:00:20]} gxf4 {[%emt 0:16:12]} 19. g5 {[%emt 0:01:15]} cxd4 {[%emt 0:02:29]} 20. cxd4 {[%emt 0:01:59]} Rc8 {[%emt 0:00:38]} 21. Raf1 {[%emt 0:00:24]} Qc7 {[%emt 0:01:00]} 22. Rg2 {[%emt 0:00:23]} Qc3 {[%emt 0:12:55]} 23. Qxf4 {[%emt 0:00:24]} Qd3 {[%emt 0:00:38]} 24. Ne3 {[%emt 0:14:37]} Qe4 {[%emt 0:03:33]} 25. Qxe4 {[%emt 0:01:57]} dxe4 {[%emt 0:00:02]} 26. Rg4 {[%emt 0:01:06]} Rc3 {[%emt 0:01:41]} 27. Rxe4 {[%emt 0:00:10]} Nb6 {[%emt 0:00:46]} 28. Nc4 {[%emt 0:00:43]} Nxc4 {[%emt 0:00:36]} 29. bxc4 {[%emt 0:00:07]} Rxc4 {[%emt 0:00:24]} 30. Ref4 {[%emt 0:01:49]} Rc2 {[%emt 0:00:33]} 31. d5 {[%emt 0:00:52]} exd5 {[%emt 0:04:40]} 32. e6 {[%emt 0:00:20]} Rc7 {[%emt 0:00:35]} 33. h4 {[%emt 0:12:41]} Re7 {[%emt 0:00:35]} 34. h5 {[%emt 0:04:57]} Rxe6 {[%emt 0:00:38]} 35. Rf5 {[%emt 0:02:17]} Rd6 {[%emt 0:00:22]} 36. Kg2 {[%emt 0:00:40]} d4 {[%emt 0:03:08]} 37. Kg3 {[%emt 0:01:45]} d3 {[%emt 0:01:06]} 38. Kf4 {[%emt 0:01:46]} d2 {[%emt 0:01:45]} 39. Rd1 {[%emt 0:00:11]} Re8 {[%emt 0:00:44]} 40. Re5 {[%emt 0:00:14]} Rxe5 {[%emt 0:00:04]} 41. Kxe5 {[%emt 0:30:15]} Rd7 {[%emt 0:30:16]} 42. Kf5 {[%emt 0:00:42]} Rd5+ {[%emt 0:00:15]} 43. Kf4 {[%emt 0:00:11]} h6 {[%emt 0:00:24]} 44. gxh6+ {[%emt 0:00:54]} Kxh6 {[%emt 0:00:02]} 45. Ke4 {[%emt 0:00:33]} Rd7 {[%emt 0:00:06]} 46. Ke3 {[%emt 0:00:14]} Kxh5 {[%emt 0:00:05]} 47. Ke2 {[%emt 0:00:22]} f5 {[%emt 0:00:14]} 48. Rh1+ {[%emt 0:00:02]} Kg5 {[%emt 0:00:17]} 49. Kd1 {[%emt 0:00:03]} f4 {[%emt 0:00:19]} 50. Rg1+ {[%emt 0:00:14]} Kf5 {[%emt 0:00:06]} 51. Rg8 {[%emt 0:00:15]} a5 {[%emt 0:00:58]} 52. Rf8+ {[%emt 0:00:11]} Ke4 {[%emt 0:00:11]} 53. Re8+ {[%emt 0:00:14]} Kf3 {[%emt 0:00:04]} 54. a4 {[%emt 0:00:26]} Kf2 {[%emt 0:00:38]} 55. Re4 {[%emt 0:01:53]} Kg3 {[%emt 0:00:56]} 56. Re8 {[%emt 0:00:57]} f3 {[%emt 0:00:59]} 57. Rg8+ {[%emt 0:00:05]} Kh2 {[%emt 0:00:30]} 58. Rh8+ {[%emt 0:00:08]} Kg2 {[%emt 0:00:04]} 59. Rg8+ {[%emt 0:00:03]} Kf1 {[%emt 0:00:21]} 60. Rg5 {[%emt 0:01:26]} f2 {[%emt 0:06:01]} 61. Rxa5 {[%emt 0:00:24]} Rg7 {[%emt 0:00:20]} 62. Rf5 {[%emt 0:03:43]} Kg2 {[%emt 0:00:30]} 63. Ke2 {[%emt 0:00:08]} d1=Q+ {[%emt 0:00:27]} 1-0

[Event "1st FIDE Olympiad DIS 2023"]
[Site "Belgrade"]
[Date "2023.02.04"]
[Round "6.4"]
[White "Stachanczyk, Jacek"]
[Black "Aleksandrova, Aleksandra"]
[Result "1-0"]
[ECO "B12"]
[WhiteElo "2189"]
[BlackElo "1701"]
[Annotator "TA"]
[PlyCount "83"]
[EventDate "2023.01.30"]
[EventType "team-tourn"]
[EventCountry "SRB"]
[SourceTitle "playchess.com"]
[Source "ChessBase"]
[SourceQuality "1"]
[WhiteTeam "Poland"]
[BlackTeam "Israel"]
[WhiteTeamCountry "POL"]
[BlackTeamCountry "ISR"]
[TimeControl "40/5400+30:1800+30"]

{[%evp 9,83,66,66,64,70,64,69,33,27,-10,-10,-10,-10,-8,-9,-8,39,0,0,0,200,159,169,137,355,351,604,193,2735,618,2668,248,242,100,369,379,375,374,339,345,370,351,352,0,336,295,300,291,287,229,262,235,730,201,909,897,812,793,29973,520,6403,521,512,516,510,497,532,506,496,487,472,391,610,628,29976,29977]} 1. e4 {[%emt 0:00:08]} d6 {[%emt 0:00:41]} 2. d4 {[%emt 0:00:08]} c6 {[%emt 0:00:02]} 3. Nc3 {[%emt 0:00:06]} Nd7 {[%emt 0:00:06]} 4. f4 {[%emt 0:00:09]} Qc7 {[%emt 0:00:08]} 5. Nf3 {[%emt 0:00:08]} e5 {[%emt 0:00:08]} 6. Bc4 {[%emt 0:00:25] B12: Caro-Kann: Advance Variation.} Be7 {[%emt 0:00:12]} 7. fxe5 {[%emt 0:23:10] White is more active.} dxe5 {[%emt 0:00:41]} 8. dxe5 {[%emt 0:11:32] White is slightly better.} (8. O-O $5 {[%cal Rc4f7]} exd4 9. Nxd4 $16) 8... Nxe5 {[%emt 0:12:08] [#]} 9. Nxe5 $146 {[%emt 0:02:52]} (9. Bf4 $5 Nd3+ 10. Qxd3 Qxf4 11. Ne2 $14) ({Predecessor:} 9. Bf4 Nd3+ 10. Qxd3 Qxf4 11. O-O Nh6 12. Ne2 Qc7 13. Ned4 O-O 14. c3 Ng4 15. e5 {1-0 Darowicki,M (1942)-Cap,P (1793) Rubinstein Memorial-C 53rd 2017 (4)}) 9... Qxe5 {[%emt 0:00:15]} 10. Qf3 {[%emt 0:00:15]} Nf6 {[%emt 0:01:21][%cal Bg8f6,Bf6g4,Bg4f2][%mdl 32]} 11. Bf4 {[%emt 0:00:55]} Qd4 {[%emt 0:01:49]} 12. Qd3 {[%emt 0:09:03]} Qb6 {[%emt 0:04:45]} (12... Qxd3 $11 {should be considered.} 13. cxd3 O-O) 13. e5 {[%emt 0:06:17]} (13. O-O-O $5 {[%cal Re4e5]}) 13... Ng4 {[%emt 0:11:39] ...Qf2+ would be deadly.} 14. Rf1 {[%emt 0:01:51][%cal Oc4f7] Repels Qf2+} (14. O-O-O Nf2 15. Qg3 Nxh1 16. Rxh1 (16. Qxg7 Rf8 $11) 16... Bf5 17. Qxg7 Rf8 $15) 14... Bc5 $2 {[%emt 0:04:34] White stays focused until the end.} (14... Qxb2 $2 15. Rb1 $18) (14... O-O $1 $11) 15. h3 {[%emt 0:16:25]} Nf2 {[%emt 0:04:00]} (15... Qxb2 $2 16. Bxf7+ Kxf7 17. Bc1+ Bf2+ 18. Rxf2+ Nxf2 19. Qf3+ (19. Bxb2 $2 Nxd3+ 20. cxd3 Bf5 $19) 19... Kg8 20. Bxb2 $18) 16. Qd2 $36 {[%emt 0:06:31][%mdl 2048] Hoping for Na4. White is really pushing.} Qxb2 $2 {[%emt 0:05:33]} (16... O-O $16) 17. Rb1 $18 {[%emt 0:01:13]} Qa3 {[%emt 0:00:24]} (17... Ne4) 18. Bg3 $2 {[%emt 0:02:51]} (18. Rxf2 $2 Bxf2+ 19. Kxf2 Qc5+ 20. Be3 Qxc4 $19) (18. Nb5 cxb5 19. Bxb5+ Bd7 20. Bxd7+ {[%mdl 64] Discovered Attack} Kf8 21. Rxf2 Bxf2+ 22. Kxf2 Qc5+ 23. Kg3) 18... Bb4 {[%emt 0:10:27]} (18... b5 $2 19. Rb3 (19. Bb3 O-O $18) 19... Qa5 20. Bxf7+ (20. Nxb5 Qxd2+ 21. Kxd2 cxb5 $16) 20... Kxf7 21. Bxf2 $18) (18... O-O) 19. Rb3 {[%emt 0:00:09]} (19. Kxf2 Bxc3 20. Qd3 (20. Qd6 Qxd6 21. exd6 b5 $11) 20... O-O $11) (19. Bxf7+ $142 Ke7 20. Rxb4 {[%mdl 64] Decoy} (20. Kxf2 Qxc3 21. Qxc3 Bxc3 $18)) 19... Qa5 {[%emt 0:11:08]} 20. Bxf2 $2 {[%emt 0:01:44]} (20. Bxf7+ Kf8 21. Rxf2) 20... O-O {[%emt 0:00:18]} 21. Qd4 {[%emt 0:03:25]} (21. Bg3 $18 {has better winning chances.}) 21... b5 $2 {[%emt 0:01:35][%mdl 8192] [#]} (21... c5 $16 {was necessary.} 22. Qd2 Be6 23. Bxe6 fxe6) 22. Rxb4 $1 {[%emt 0:01:25]} bxc4 {[%emt 0:00:26]} 23. Ra4 {[%emt 0:00:38]} (23. Rxc4 Qc7 24. Ra4 Bf5 $18) (23. Qxc4 Qxe5+ 24. Kd1 (24. Ne4 a5 $14) 24... a5 $18) 23... Qc7 {[%emt 0:00:55]} 24. Qd6 {[%emt 0:00:32]} (24. Rxc4 $6 Ba6 $18) 24... Qb7 {[%emt 0:01:59]} 25. Rb4 {[%emt 0:00:59] Repels Qb2} (25. Rxc4 Qb2 $18) 25... Qa6 {[%emt 0:01:00]} 26. Ra4 {[%emt 0:01:50]} Qb7 {[%emt 0:00:15]} 27. Qb4 {[%emt 0:01:29] Against Qb2} (27. Rxc4 Qb2 $18) 27... Qc7 {[%emt 0:00:32]} 28. Qa5 {[%emt 0:00:02]} Qe7 {[%emt 0:00:55]} 29. Rxc4 {[%emt 0:00:32]} Qg5 {[%emt 0:05:03]} 30. Ne4 {[%emt 0:04:08]} (30. Rxc6 $6 Re8 31. Ne2 (31. Bxa7 $2 Rxe5+ $19) 31... Qxg2 $18) 30... Qxg2 {[%emt 0:02:44]} (30... Qg6 31. Qa3 (31. Bxa7 Qxg2 32. Qc5 Ba6 $18) 31... a5) 31. Qa3 $2 {[%emt 0:00:01]} (31. Bxa7 Bxh3 32. Rf4 (32. Rf2 $2 Qg1+ 33. Kd2 Rfd8+ 34. Ke3 Qc1+ 35. Rd2 Rd7 $19) 32... Qh1+ 33. Kd2 Rfd8+ 34. Nd6 Rd7 35. Rxf7 Rxf7 36. Nxf7 Qg2+ 37. Kc3 Qf3+ 38. Kb2 Qxf7 $17) (31. Rg1 Qf3 32. e6 (32. Bxa7 Be6 $16)) 31... Qh2 {[%emt 0:03:35] [#]} (31... Rb8 32. Rb4 (32. Bxa7 $2 Rb1+ {[%mdl 64] Skewer}) 32... Rxb4 33. Qxb4 a5) 32. Nf6+ $1 {[%emt 0:00:33][%mdl 512]} gxf6 {[%emt 0:00:38] Black is weak on the dark squares} 33. Rg1+ {[%emt 0:00:08]} ({And not} 33. Rxc6 Qxe5+ 34. Qe3 Qa5+ 35. Rc3 Bf5 $17) 33... Bg4 {[%emt 0:00:25]} 34. Rcxg4+ {[%emt 0:00:19]} Kh8 {[%emt 0:00:04]} 35. Qg3 {[%emt 0:00:43]} (35. R4g3 $142 Rg8 36. Qf3) 35... Qxg3 {[%emt 0:00:25]} 36. Bxg3 {[%emt 0:00:02] Threatening mate with Bh4.} Rae8 {[%emt 0:03:49]} 37. Rf1 {[%emt 0:00:26][%cal Og3h4] Bh4! is the strong threat.} fxe5 {[%emt 0:00:28]} 38. Rf6 {[%emt 0:00:24]} c5 {[%emt 0:01:18]} 39. Rg5 {[%emt 0:00:40]} Rg8 {[%emt 0:04:16]} 40. Rxg8+ {[%emt 0:01:28]} Rxg8 {[%emt 0:00:02]} (40... Kxg8 $142 41. Rf5 Kf8 42. Bxe5 Re6) 41. Bxe5 {[%emt 0:30:20]} Re8 {[%emt 0:30:13]} 42. Re6+ {[%emt 0:00:07][%mdl 64] Discovered Attack. An interesting game.   Weighted Error Value: White=0.96/Black=0.92} ({Not} 42. Rxf7+ Rxe5+ 43. Kf2 a5 $14) 1-0

[Event "1st FIDE Olympiad DIS 2023"]
[Site "Belgrade"]
[Date "2023.02.04"]
[Round "6.4"]
[White "Sarkar, Ali Newaz"]
[Black "Gardner, Phillip K"]
[Result "1/2-1/2"]
[ECO "B50"]
[WhiteElo "1809"]
[BlackElo "1814"]
[Annotator "NA RC COMBH"]
[PlyCount "41"]
[EventDate "2023.01.30"]
[EventType "team-tourn"]
[EventCountry "SRB"]
[SourceTitle "playchess.com"]
[Source "ChessBase"]
[SourceQuality "1"]
[WhiteTeam "Bangladesh"]
[BlackTeam "England"]
[WhiteTeamCountry "BAN"]
[BlackTeamCountry "ENG"]
[TimeControl "40/5400+30:1800+30"]

1. e4 {[%emt 0:00:04]} c5 {[%emt 0:00:02]} 2. Nf3 {[%emt 0:00:14]} d6 {[%emt 0:00:03]} 3. h3 {[%emt 0:00:22]} Nf6 {[%emt 0:00:08]} 4. Nc3 {[%emt 0:00:48]} a6 {[%emt 0:00:08]} 5. a3 {[%emt 0:00:45]} b5 {[%emt 0:02:51]} 6. d4 {[%emt 0:00:34]} cxd4 {[%emt 0:00:32]} 7. Nxd4 {[%emt 0:00:43]} Bb7 {[%emt 0:00:11]} 8. Bd3 $1 {[%emt 0:00:45]} e6 {[%emt 0:04:50]} 9. Bg5 {[%emt 0:00:58]} Nbd7 {[%emt 0:02:48]} 10. O-O {[%emt 0:00:40]} Be7 {[%emt 0:00:16]} 11. Re1 {[%emt 0:01:46]} Qc7 {[%emt 0:01:22]} 12. Nb3 {[%emt 0:08:06]} O-O {[%emt 0:02:53]} 13. Bf4 {[%emt 0:09:21]} Rfd8 {[%emt 0:08:25]} 14. Rc1 {[%emt 0:00:47]} e5 {[%emt 0:02:12]} 15. Bg5 {[%emt 0:01:32]} h6 {[%emt 0:10:26]} 16. Bh4 {[%emt 0:01:12]} Re8 {[%emt 0:07:44]} 17. Bg3 {[%emt 0:03:43]} Nc5 {[%emt 0:05:26]} 18. Kh1 {[%emt 0:05:28]} Ne6 {[%emt 0:05:07]} 19. Bf1 {[%emt 0:10:35]} Nc5 {[%emt 0:06:45]} (19... Nf4 $15 {is superior.}) 20. Bd3 {[%emt 0:02:39]} Ncd7 {[%emt 0:04:32]} (20... Rac8 $15) 21. Bf1 $15 {[%emt 0:02:07]} 1/2-1/2

[Event "1st FIDE Olympiad DIS 2023"]
[Site "Belgrade"]
[Date "2023.02.04"]
[Round "6.5"]
[White "Zambo, Zoltan Istvan"]
[Black "Mikheev, Stanislav"]
[Result "1/2-1/2"]
[ECO "D23"]
[WhiteElo "2301"]
[BlackElo "2300"]
[Annotator "TA"]
[PlyCount "38"]
[EventDate "2023.01.30"]
[EventType "team-tourn"]
[EventCountry "SRB"]
[SourceTitle "playchess.com"]
[Source "ChessBase"]
[SourceQuality "1"]
[WhiteTeam "Hungary"]
[BlackTeam "Serbia"]
[WhiteTeamCountry "HUN"]
[BlackTeamCountry "SRB"]
[TimeControl "40/5400+30:1800+30"]

{[%evp 16,38,10,9,12,20,29,26,35,0,32,0,0,0,0,0,0,0,0,-5,0,0,0,0,14]} 1. d4 {[%emt 0:00:03]} d5 {[%emt 0:00:22]} 2. Nf3 {[%emt 0:00:48]} Nf6 {[%emt 0:00:22]} 3. c4 {[%emt 0:00:17]} c6 {[%emt 0:00:17]} 4. Qb3 {[%emt 0:02:06]} dxc4 {[%emt 0:04:42]} 5. Qxc4 {[%emt 0:00:38]} Bf5 {[%emt 0:00:09]} 6. g3 {[%emt 0:01:50]} e6 {[%emt 0:00:24]} 7. Bg2 {[%emt 0:00:44]} Nbd7 {[%emt 0:00:45]} 8. O-O {[%emt 0:01:19]} Be7 {[%emt 0:04:11]} 9. e3 {[%emt 0:01:12]} O-O {[%emt 0:00:22] D23: Queen's Gambit Accepted: 3 Nf3 Nf6 sidelines.} 10. Qe2 {[%emt 0:02:34]} h6 {[%emt 0:04:45]} 11. Rd1 {[%emt 0:05:28]} Qc7 {[%emt 0:02:32] [#] White has an edge. 11...Bh7 injects fresh life into this line.} 12. Nbd2 $146 {[%emt 0:09:59][%cal Bb1d2,Bd2f3,Bf3d4][%mdl 32]} ({Predecessor:} 12. Nc3 Ne4 13. Bd2 Rad8 14. Rac1 Rfe8 15. Be1 Nxc3 16. Bxc3 Be4 17. Bf1 c5 18. Nd2 {1-0 Rapport,R (2700)-Dvirnyy,D (2534) Gibraltar Masters 16th 2018 (5)}) 12... e5 {[%emt 0:09:04]} 13. Nxe5 {[%emt 0:08:55]} (13. e4 $5 {[%cal Re4f5]} Be6 14. b3 $14 (14. Nc4 Nxe4 15. Nfxe5 Nef6 $11)) 13... Nxe5 {[%emt 0:00:46] The position is equal.} 14. dxe5 {[%emt 0:00:07]} Qxe5 {[%emt 0:00:07]} 15. Nf3 {[%emt 0:00:25]} Qc7 {[%emt 0:01:42]} 16. Nd4 {[%emt 0:02:00]} Bg6 {[%emt 0:03:20]} 17. b3 {[%emt 0:04:15]} Rfe8 {[%emt 0:02:18]} 18. Bb2 {[%emt 0:01:59]} Rad8 {[%emt 0:01:53]} 19. Rac1 {[%emt 0:01:33]} Qa5 {[%emt 0:01:38] An uneventful encounter.   Weighted Error Value: White=0.07 (flawless) /Black=0.06 (flawless)} 1/2-1/2

[Event "1st FIDE Olympiad DIS 2023"]
[Site "Belgrade"]
[Date "2023.02.04"]
[Round "6.5"]
[White "Bjelanovic, Mile"]
[Black "Kevorkov, Artur"]
[Result "0-1"]
[ECO "C00"]
[WhiteElo "2021"]
[BlackElo "2158"]
[Annotator "TA"]
[PlyCount "66"]
[EventDate "2023.01.30"]
[EventType "team-tourn"]
[EventCountry "SRB"]
[SourceTitle "playchess.com"]
[Source "ChessBase"]
[SourceQuality "1"]
[WhiteTeam "Serbia"]
[BlackTeam "Germany"]
[WhiteTeamCountry "SRB"]
[BlackTeamCountry "GER"]
[TimeControl "40/5400+30:1800+30"]

{[%evp 12,66,-5,-10,18,16,32,0,11,10,0,0,21,5,70,13,24,19,19,16,53,24,38,45,41,20,41,30,122,123,123,125,126,63,91,60,86,84,106,22,59,64,68,47,40,41,59,41,43,43,58,65,60,0,0,-567,-565]} 1. e4 {[%emt 0:00:05]} e6 {[%emt 0:00:05]} 2. d3 {[%emt 0:00:13]} d5 {[%emt 0:00:25]} 3. Qe2 {[%emt 0:00:10]} Nf6 {[%emt 0:00:25]} 4. Nf3 {[%emt 0:00:20]} Be7 {[%emt 0:00:25]} 5. g3 {[%emt 0:00:36]} c5 {[%emt 0:00:08]} 6. Bg2 {[%emt 0:00:11]} Nc6 {[%emt 0:00:08] 6...0-0 is vanishing.} 7. O-O {[%emt 0:00:46]} d4 {[%emt 0:01:26] C00: French: Unusual White 2nd moves.} 8. e5 {[%emt 0:01:40]} Nd5 {[%emt 0:00:28]} 9. Nbd2 {[%emt 0:01:31]} Qc7 {[%emt 0:00:41] The position is equal.} 10. a4 {[%emt 0:03:18]} Bd7 {[%emt 0:02:59]} 11. Nc4 {[%emt 0:00:50] [#]} h6 $146 {[%emt 0:00:18] Dodges Bg5} ({Predecessor:} 11... a6 12. a5 O-O 13. Ng5 f6 14. exf6 Rxf6 15. Bxd5 exd5 16. Nb6 Re8 17. Nxd5 Qd6 18. Nxf6+ Bxf6 {1-0 Suliborski,A (1943)-Galbavy,D (1853) EU Amateur-ch 2016 (8)}) 12. Re1 {[%emt 0:02:03]} Na5 {[%emt 0:05:43]} (12... Nb6 $11) 13. Nfd2 {[%emt 0:03:14]} (13. Bd2 $14 Nc6 14. Nh4) 13... Nxc4 {[%emt 0:00:55]} 14. Nxc4 {[%emt 0:00:08] Hoping for Bxd5.} Bc6 {[%emt 0:00:11]} 15. Bd2 {[%emt 0:03:06]} b6 {[%emt 0:00:30]} 16. Rec1 {[%emt 0:04:53]} O-O {[%emt 0:04:09]} 17. Qg4 {[%emt 0:04:56]} Kh8 {[%emt 0:00:06]} 18. Qh5 {[%emt 0:00:55][%cal Od2h6] Threatens to win with Bxh6!} Qd7 {[%emt 0:08:49]} 19. Be4 {[%emt 0:09:22][%cal Od2h6]} f5 {[%emt 0:02:05] [#]} (19... Nb4 $11) 20. exf6 $1 $16 {[%emt 0:03:52]} Nxf6 {[%emt 0:00:04]} 21. Bxc6 {[%emt 0:00:53]} Qxc6 {[%emt 0:00:03]} 22. Qe2 {[%emt 0:02:30]} (22. Qh3 $16) 22... Nd7 {[%emt 0:02:19]} 23. Bf4 {[%emt 0:05:45]} Rf6 {[%emt 0:02:46]} 24. Re1 {[%emt 0:06:12]} Raf8 {[%emt 0:02:07]} 25. Rf1 {[%emt 0:10:21]} (25. Qe4 $16 Rc8 26. Qxc6 Rxc6 27. Re4) 25... Rg6 {[%emt 0:02:52]} 26. Be5 {[%emt 0:03:10]} Rf5 {[%emt 0:01:07]} 27. Rae1 {[%emt 0:05:16]} a6 $1 {[%emt 0:02:15]} (27... Qxa4 $2 28. Ra1 Qc6 29. Rxa7 $18) 28. f4 {[%emt 0:04:29]} b5 {[%emt 0:05:25]} 29. axb5 {[%emt 0:02:25]} axb5 {[%emt 0:00:02]} 30. Nd2 {[%emt 0:00:10]} Nxe5 {[%emt 0:01:12]} 31. fxe5 {[%emt 0:00:10]} Bg5 {[%emt 0:06:04] [#] And now ...Be3+ would win.} 32. Rxf5 {[%emt 0:03:54]} ({White should play} 32. Qe4 $14 Qxe4 33. Nxe4 Rxe5 34. Rf8+ Kh7 35. Kg2) 32... exf5 $11 {[%emt 0:04:23]} 33. Qf3 {[%emt 0:01:40][%mdl 8192]} Bxd2 {[%emt 0:00:53] Weighted Error Value: White=0.41/Black=0.21 (precise)} 0-1